fUSD/lending_fUSD_20260611
["ID","MTS","AMOUNT","RATE_DAILY","PERIOD"]
[424794384,1781169040000,-500.0,0.00013698,2]
[424794396,1781169040000,-500.0,0.00013698,2]
[424794430,1781169040000,-3600.0,0.000139,5]
[424794369,1781169040000,-500.0,0.00013698,2]
[424794368,1781169040000,-500.0,0.00013698,2]
[424794370,1781169040000,-500.0,0.00013698,2]
[424794373,1781169040000,-500.0,0.00013698,2]
[424794372,1781169040000,-500.0,0.00013698,2]
[424794371,1781169040000,-500.0,0.00013698,2]
[424794374,1781169040000,-500.0,0.00013698,2]
[424794375,1781169040000,-500.0,0.00013698,2]
[424794377,1781169040000,-500.0,0.00013698,2]
[424794378,1781169040000,-500.0,0.00013698,2]
[424794380,1781169040000,-500.0,0.00013698,2]
[424794379,1781169040000,-500.0,0.00013698,2]
[424794381,1781169040000,-171.51496798,0.00013698,2]
[424794383,1781169040000,-500.0,0.00013698,2]
[424794385,1781169040000,-500.0,0.00013698,2]
[424794386,1781169040000,-500.0,0.00013698,2]
[424794382,1781169040000,-500.0,0.00013698,2]
[424794387,1781169040000,-500.0,0.00013698,2]
[424794388,1781169040000,-500.0,0.00013698,2]
[424794390,1781169040000,-500.0,0.00013698,2]
[424794393,1781169040000,-500.0,0.00013698,2]
[424794392,1781169040000,-500.0,0.00013698,2]
[424794391,1781169040000,-500.0,0.00013698,2]
[424794389,1781169040000,-500.0,0.00013698,2]
[424794394,1781169040000,-500.0,0.00013698,2]
[424794429,1781169040000,-150.0,0.00013862,2]
[424794440,1781169040000,-150.0,0.00014237,2]
[424794431,1781169040000,-400.0,0.000139,5]
[424794463,1781169040000,-1240.73551738,0.000144,2]
[424794464,1781169040000,-530.0,0.00014519,2]
[424794465,1781169040000,-530.0,0.00014519,2]
[424794466,1781169040000,-530.0,0.00014519,2]
[424794468,1781169040000,-530.0,0.00014519,2]
[424794467,1781169040000,-530.0,0.00014519,2]
[424794471,1781169040000,-955.0,0.00014519,2]
[424794469,1781169040000,-530.0,0.00014519,2]
[424794470,1781169040000,-530.0,0.00014519,2]
[424794472,1781169040000,-700.0,0.000146,5]
[424794473,1781169040000,-150.0,0.00014612,2]
[424794461,1781169040000,-151.0,0.00014371,2]
[424794476,1781169040000,-700.0,0.000147,5]
[424794474,1781169040000,-151.0,0.0001463,2]
[424794475,1781169040000,-1613.0535,0.00014664,2]
[424794479,1781169040000,-500.0,0.00014773,2]
[424794478,1781169040000,-400.0,0.00014707,2]
[424794482,1781169040000,-500.0,0.00014773,2]
[424794480,1781169040000,-500.0,0.00014773,2]
[424794481,1781169040000,-500.0,0.00014773,2]
[424794484,1781169040000,-500.0,0.00014773,2]
[424794483,1781169040000,-500.0,0.00014773,2]
[424794486,1781169040000,-500.0,0.00014773,2]
[424794485,1781169040000,-500.0,0.00014773,2]
[424794434,1781169040000,-26574.84911613,0.0001399,2]
[424794462,1781169040000,-10482.63494594,0.0001439,2]
[424794477,1781169040000,-400.0,0.000147,5]
[424794459,1781169040000,-1064.597968,0.00014371,2]
[424794457,1781169040000,-1064.597968,0.00014371,2]
[424794433,1781169040000,-228.894412,0.00013916,2]
[424794432,1781169040000,-278.845882,0.00013903,2]
[424794436,1781169040000,-308.623807,0.00014084,2]
[424794435,1781169040000,-1500.0,0.00014,2]
[424794438,1781169040000,-1555.5,0.00014116,2]
[424794437,1781169040000,-1145.73646957,0.000141,2]
[424794441,1781169040000,-4457.829219,0.00014298,2]
[424794443,1781169040000,-494.19944228,0.0001436,2]
[424794445,1781169040000,-500.0,0.0001437,2]
[424794442,1781169040000,-2721.80380729,0.00014356,2]
[424794444,1781169040000,-151.0,0.00014368,2]
[424794439,1781169040000,-2523.04654814,0.000142,2]
[424794446,1781169040000,-500.0,0.0001437,2]
[424794458,1781169040000,-1064.597968,0.00014371,2]
[424794447,1781169040000,-500.0,0.0001437,2]
[424794460,1781169040000,-151.0,0.00014371,2]
[424794456,1781169040000,-1064.597968,0.00014371,2]
[424794454,1781169040000,-500.0,0.0001437,2]
[424794453,1781169040000,-500.0,0.0001437,2]
[424794455,1781169040000,-549.51495302,0.0001437,2]
[424794452,1781169040000,-500.0,0.0001437,2]
[424794451,1781169040000,-500.0,0.0001437,2]
[424794448,1781169040000,-500.0,0.0001437,2]
[424794450,1781169040000,-500.0,0.0001437,2]
[424794449,1781169040000,-500.0,0.0001437,2]
[424794508,1781169041000,-25000.0,0.00014774,3]
[424794503,1781169041000,-500.0,0.00014773,2]
[424794507,1781169041000,-500.0,0.00014773,2]
[424794511,1781169041000,-151.0,0.00014791,2]
[424794504,1781169041000,-500.0,0.00014773,2]
[424794509,1781169041000,-168.90688265,0.00014779,2]
[424794512,1781169041000,-25000.0,0.00014791,3]
[424794510,1781169041000,-25000.0,0.00014782,3]
[424794506,1781169041000,-500.0,0.00014773,2]
[424794513,1781169041000,-500.0,0.00014793,2]
[424794514,1781169041000,-500.0,0.00014793,2]
[424794502,1781169041000,-500.0,0.00014773,2]
[424794505,1781169041000,-500.0,0.00014773,2]
[424794500,1781169041000,-500.0,0.00014773,2]
[424794488,1781169041000,-500.0,0.00014773,2]
[424794499,1781169041000,-500.0,0.00014773,2]
[424794497,1781169041000,-500.0,0.00014773,2]
[424794498,1781169041000,-500.0,0.00014773,2]
[424794496,1781169041000,-500.0,0.00014773,2]
[424794494,1781169041000,-500.0,0.00014773,2]
[424794495,1781169041000,-500.0,0.00014773,2]
[424794493,1781169041000,-500.0,0.00014773,2]
[424794492,1781169041000,-500.0,0.00014773,2]
[424794491,1781169041000,-500.0,0.00014773,2]
[424794489,1781169041000,-500.0,0.00014773,2]
[424794490,1781169041000,-500.0,0.00014773,2]
[424794487,1781169041000,-500.0,0.00014773,2]
[424794517,1781169041000,-350.0,0.000148,2]
[424794501,1781169041000,-500.0,0.00014773,2]
[424794518,1781169041000,-2368.92644874,0.000148,2]
[424794515,1781169041000,-500.0,0.00014793,2]
[424794521,1781169041000,-400.0,0.000148,5]
[424794550,1781169041000,-367.77454889,0.00013698,2]
[424794548,1781169041000,-904.55815358,0.00011275,2]
[424794546,1781169041000,-1960.09333851,0.00015,2]
[424794547,1781169041000,-11069982.06171135,0.00015,2]
[424794543,1781169041000,-666.0,0.00014999,2]
[424794545,1781169041000,-666.0,0.00014999,2]
[424794544,1781169041000,-300.0,0.00014999,2]
[424794542,1781169041000,-300.0,0.00014999,2]
[424794539,1781169041000,-300.0,0.00014999,2]
[424794540,1781169041000,-300.0,0.00014999,2]
[424794536,1781169041000,-2000.0,0.00014999,2]
[424794538,1781169041000,-666.0,0.00014999,2]
[424794534,1781169041000,-151.0,0.00014997,2]
[424794537,1781169041000,-300.0,0.00014999,2]
[424794535,1781169041000,-250.0,0.00014999,2]
[424794520,1781169041000,-700.0,0.000148,5]
[424794533,1781169041000,-115968.91106027,0.00014989,2]
[424794530,1781169041000,-1239.44014733,0.000149,2]
[424794516,1781169041000,-895.0,0.00014793,2]
[424794519,1781169041000,-25000.0,0.000148,3]
[424794524,1781169041000,-1145.73646957,0.000149,2]
[424794523,1781169041000,-10819.58354044,0.000149,2]
[424794522,1781169041000,-1000.07478063,0.0001487,2]
[424794549,1781169041000,-627.21308337,0.00011275,2]
[424794525,1781169041000,-2721.80380729,0.000149,2]
[424794528,1781169041000,-400.0,0.000149,5]
[424794527,1781169041000,-2523.04654814,0.000149,2]
[424794531,1781169041000,-291.64660163,0.00014908,2]
[424794529,1781169041000,-171.48663565,0.000149,2]
[424794532,1781169041000,-150.75812701,0.00014986,2]
[424794526,1781169041000,-700.0,0.000149,5]
[424794561,1781169042000,-500.0,0.00013698,2]
[424794560,1781169042000,-500.0,0.00013698,2]
[424794557,1781169042000,-1531.77123695,0.00011286,2]
[424794559,1781169042000,-132.22545111,0.00013698,2]
[424794565,1781169043000,-816387.5286161,0.00015,2]
[424794564,1781169043000,-500.0,0.00013698,2]
[424794562,1781169043000,-500.0,0.00013698,2]
[424794563,1781169043000,-500.0,0.00013698,2]
[424794568,1781169043000,-271.89,0.00013698,2]
[424794569,1781169043000,-123.27,0.00015,2]
[424794566,1781169043000,-500.0,0.00013698,2]
[424794567,1781169043000,-228.11,0.00013698,2]
[424794570,1781169043000,-534.89531366,0.00015,2]
[424794573,1781169044000,-236.90116461,0.00013698,2]
[424794572,1781169044000,-500.0,0.00013698,2]
[424794577,1781169044000,-364.40469897,0.00013698,2]
[424794574,1781169044000,-263.09883539,0.00013698,2]
[424794576,1781169044000,-163.09883539,0.00013698,2]
[424794575,1781169044000,-336.90116461,0.00013698,2]
[424794584,1781169045000,-404.26499995,0.00015,2]
[424794583,1781169045000,-728.83,0.00015,2]
[424794580,1781169045000,-1685.20928432,0.00015,2]
[424794581,1781169045000,-628.26271996,0.00015,2]
[424794579,1781169045000,-139.01576747,0.00013698,2]
[424794582,1781169045000,-395.25999999,0.00015,2]
[424794592,1781169046000,-1041.45,0.00015,2]
[424794594,1781169046000,-8534.03320983,0.00015,2]
[424794593,1781169046000,-500.0,0.00013698,2]
[424794598,1781169255000,400.0,8.9e-05,3]
[424794599,1781169258000,800.0,9e-05,3]
[424794600,1781169296000,400.0,8.9e-05,3]
[424794601,1781169298000,900.0,9e-05,3]
[424794602,1781169318000,300.0,0.0003,120]
[424794603,1781169324000,151.0,0.0003,120]
[424794604,1781169325000,155.50067004,0.0003,120]
[424794608,1781169626000,153.0,0.0003,120]
[424794614,1781169882000,1000.0747816,0.0003013,120]
[424794616,1781169918000,300.0,0.0003,120]
[424794615,1781169918000,219.97283573,0.0003,120]
[424794617,1781169922000,152.0,0.0003,120]
[424794618,1781169924000,152.0,0.0003,120]
[424794619,1781169925000,152.0,0.0003,120]
[424794620,1781169926000,152.0,0.0003,120]
[424794621,1781169926000,152.0,0.0003,120]
[424794622,1781169927000,152.0,0.0003,120]
[424794623,1781169928000,152.0,0.0003,120]
[424794624,1781169928000,152.0,0.0003,120]
[424794625,1781169929000,215.83684948,0.0003,120]
[424794626,1781169932000,151.0,0.0003,120]
[424794627,1781169933000,151.0,0.0003,120]
[424794628,1781169935000,151.0,0.0003,120]
[424794629,1781169936000,151.94160012,0.0003,120]
[424794630,1781170044000,7300.0,8.8e-05,3]
[424794631,1781170044000,900.0,8.8e-05,3]
[424794632,1781170046000,16400.0,8.9e-05,3]
[424794633,1781170048000,24700.0,9e-05,3]
[424794637,1781170221000,152.0,0.0003,120]
[424794636,1781170221000,152.0,0.0003,120]
[424794638,1781170222000,152.0,0.0003,120]
[424794639,1781170223000,240.0,0.0003,120]
[424794641,1781170228000,151.0,0.0003,120]
[424794643,1781170230000,151.0,0.0003,120]
[424794642,1781170230000,151.0,0.0003,120]
[424794644,1781170230000,301.16322638,0.0003,120]
[424794645,1781170231000,151.0,0.0003,120]
[424794659,1781170232000,-9363.91,8.25e-05,2]
[424794648,1781170232000,-512.0,7.785e-05,2]
[424794649,1781170232000,-38.23948953,7.794e-05,2]
[424794651,1781170232000,-1000.0,7.802e-05,2]
[424794650,1781170232000,-111.76051047,7.794e-05,2]
[424794653,1781170232000,-316.19835926,7.997e-05,2]
[424794652,1781170232000,-6579.65,7.923e-05,2]
[424794654,1781170232000,-1577.76,8.07e-05,2]
[424794656,1781170232000,-181.57,8.219e-05,2]
[424794657,1781170232000,-3865.97,8.219e-05,2]
[424794658,1781170232000,-2000.0,8.219e-05,2]
[424794655,1781170232000,-165.14,8.193e-05,2]
[424794663,1781170232000,-39384.66222848,8.55e-05,2]
[424794660,1781170232000,-742.82,8.432e-05,2]
[424794699,1781170232000,-1370.92965041,8.55e-05,2]
[424794700,1781170232000,-542.61816382,8.55e-05,2]
[424794698,1781170232000,-604.11425514,8.55e-05,2]
[424794666,1781170232000,-687.69603829,8.55e-05,2]
[424794687,1781170232000,-2340.39422729,8.55e-05,2]
[424794665,1781170232000,-13567.3640184,8.55e-05,2]
[424794667,1781170232000,-498.60816711,8.55e-05,2]
[424794662,1781170232000,-150.0,8.549e-05,2]
[424794661,1781170232000,-1000.0,8.549e-05,2]
[424794664,1781170232000,-99174.85415046,8.55e-05,2]
[424794747,1781170239000,-500.0,8.549e-05,2]
[424794743,1781170239000,-500.0,8.549e-05,2]
[424794744,1781170239000,-500.0,8.549e-05,2]
[424794745,1781170239000,-500.0,8.549e-05,2]
[424794746,1781170239000,-500.0,8.549e-05,2]
[424794754,1781170239000,-500.0,8.549e-05,2]
[424794748,1781170239000,-500.0,8.549e-05,2]
[424794750,1781170239000,-500.0,8.549e-05,2]
[424794751,1781170239000,-500.0,8.549e-05,2]
[424794742,1781170239000,-500.0,8.549e-05,2]
[424794757,1781170239000,-500.0,8.549e-05,2]
[424794749,1781170239000,-500.0,8.549e-05,2]
[424794740,1781170239000,-626.41088447,8.549e-05,2]
[424794736,1781170239000,-333.541908,8.549e-05,2]
[424794738,1781170239000,-105.541908,8.549e-05,2]
[424794739,1781170239000,-500.0,8.549e-05,2]
[424794737,1781170239000,-394.458092,8.549e-05,2]
[424794735,1781170239000,-166.458092,8.549e-05,2]
[424794731,1781170239000,-500.0,8.549e-05,2]
[424794726,1781170239000,-10.67477367,8.549e-05,2]
[424794728,1781170239000,-187.16166216,8.549e-05,2]
[424794734,1781170239000,-377.20291714,8.549e-05,2]
[424794725,1781170239000,-489.32522633,8.549e-05,2]
[424794723,1781170239000,-113.8350005,8.549e-05,2]
[424794724,1781170239000,-500.0,8.549e-05,2]
[424794722,1781170239000,-386.1649995,8.549e-05,2]
[424794753,1781170239000,-500.0,8.549e-05,2]
[424794741,1781170239000,-174.01041253,8.549e-05,2]
[424794752,1781170239000,-500.0,8.549e-05,2]
[424794762,1781170239000,-500.0,8.549e-05,2]
[424794755,1781170239000,-500.0,8.549e-05,2]
[424794756,1781170239000,-500.0,8.549e-05,2]
[424794785,1781170239000,-150.0,8.59e-05,2]
[424794784,1781170239000,-2341828.7591006,8.55e-05,2]
[424794782,1781170239000,-500.0,8.549e-05,2]
[424794783,1781170239000,-500.0,8.549e-05,2]
[424794781,1781170239000,-500.0,8.549e-05,2]
[424794779,1781170239000,-500.0,8.549e-05,2]
[424794774,1781170239000,-500.0,8.549e-05,2]
[424794777,1781170239000,-500.0,8.549e-05,2]
[424794775,1781170239000,-500.0,8.549e-05,2]
[424794778,1781170239000,-500.0,8.549e-05,2]
[424794776,1781170239000,-500.0,8.549e-05,2]
[424794772,1781170239000,-448.32592326,8.549e-05,2]
[424794780,1781170239000,-500.0,8.549e-05,2]
[424794769,1781170239000,-500.0,8.549e-05,2]
[424794773,1781170239000,-500.0,8.549e-05,2]
[424794758,1781170239000,-500.0,8.549e-05,2]
[424794763,1781170239000,-500.0,8.549e-05,2]
[424794760,1781170239000,-500.0,8.549e-05,2]
[424794764,1781170239000,-500.0,8.549e-05,2]
[424794766,1781170239000,-500.0,8.549e-05,2]
[424794761,1781170239000,-221.50677162,8.549e-05,2]
[424794765,1781170239000,-500.0,8.549e-05,2]
[424794767,1781170239000,-500.0,8.549e-05,2]
[424794768,1781170239000,-500.0,8.549e-05,2]
[424794770,1781170239000,-500.0,8.549e-05,2]
[424794771,1781170239000,-500.0,8.549e-05,2]
[424794759,1781170239000,-500.0,8.549e-05,2]
[424794811,1781170240000,-500.0,8.665e-05,2]
[424794806,1781170240000,-500.0,8.665e-05,2]
[424794807,1781170240000,-500.0,8.665e-05,2]
[424794809,1781170240000,-500.0,8.665e-05,2]
[424794808,1781170240000,-500.0,8.665e-05,2]
[424794804,1781170240000,-500.0,8.665e-05,2]
[424794819,1781170240000,-500.0,8.665e-05,2]
[424794813,1781170240000,-500.0,8.665e-05,2]
[424794810,1781170240000,-500.0,8.665e-05,2]
[424794818,1781170240000,-500.0,8.665e-05,2]
[424794820,1781170240000,-500.0,8.665e-05,2]
[424794815,1781170240000,-500.0,8.665e-05,2]
[424794800,1781170240000,-500.0,8.665e-05,2]
[424794814,1781170240000,-500.0,8.665e-05,2]
[424794803,1781170240000,-500.0,8.665e-05,2]
[424794788,1781170240000,-171.48663566,8.59e-05,2]
[424794801,1781170240000,-500.0,8.665e-05,2]
[424794787,1781170240000,-188.15521262,8.59e-05,2]
[424794786,1781170240000,-150.0,8.59e-05,2]
[424794816,1781170240000,-500.0,8.665e-05,2]
[424794790,1781170240000,-2207.7217,8.639e-05,2]
[424794789,1781170240000,-1944.04834334,8.59e-05,2]
[424794791,1781170240000,-168.15,8.65e-05,2]
[424794802,1781170240000,-500.0,8.665e-05,2]
[424794792,1781170240000,-9503.14,8.65e-05,2]
[424794798,1781170240000,-500.0,8.665e-05,2]
[424794795,1781170240000,-150.0,8.665e-05,2]
[424794794,1781170240000,-150.0,8.665e-05,2]
[424794796,1781170240000,-226.36768143,8.665e-05,2]
[424794797,1781170240000,-500.0,8.665e-05,2]
[424794793,1781170240000,-150.0,8.665e-05,2]
[424794799,1781170240000,-500.0,8.665e-05,2]
[424794817,1781170240000,-500.0,8.665e-05,2]
[424794812,1781170240000,-500.0,8.665e-05,2]
[424794822,1781170240000,-383.13351812,8.665e-05,2]
[424794843,1781170240000,-153.42585405,8.939e-05,2]
[424794844,1781170240000,-500.0,9.029e-05,2]
[424794845,1781170240000,-181.57,9.132e-05,2]
[424794848,1781170240000,-500.0,9.303e-05,2]
[424794847,1781170240000,-2000.0,9.247e-05,2]
[424794846,1781170240000,-60062.36022638,9.166e-05,2]
[424794839,1781170240000,-6821.7941,8.839e-05,2]
[424794849,1781170240000,-255.0,9.404e-05,2]
[424794850,1781170240000,-500.0,9.577e-05,2]
[424794855,1781170240000,-4999.99,9.67e-05,2]
[424794852,1781170240000,-1421.21,9.669e-05,2]
[424794853,1781170240000,-299.99,9.67e-05,2]
[424794856,1781170240000,-150.99,9.67e-05,2]
[424794823,1781170240000,-500.0,8.665e-05,2]
[424794854,1781170240000,-9999.99,9.67e-05,2]
[424794840,1781170240000,-2500.0,8.839e-05,2]
[424794851,1781170240000,-181.57,9.589e-05,2]
[424794842,1781170240000,-170.74865144,8.895e-05,2]
[424794828,1781170240000,-811.47,8.676e-05,2]
[424794841,1781170240000,-1712.53325092,8.84e-05,2]
[424794829,1781170240000,-215.95576085,8.694e-05,2]
[424794825,1781170240000,-728.96288957,8.675e-05,2]
[424794824,1781170240000,-337.0775293,8.665e-05,2]
[424794827,1781170240000,-181.57,8.676e-05,2]
[424794831,1781170240000,-500.0,8.716e-05,2]
[424794826,1781170240000,-1000.0,8.675e-05,2]
[424794833,1781170240000,-1500000.0,8.739e-05,2]
[424794832,1781170240000,-59367.5107,8.739e-05,2]
[424794830,1781170240000,-250.0,8.716e-05,2]
[424794835,1781170240000,-401.737,8.755e-05,2]
[424794837,1781170240000,-512.0,8.759e-05,2]
[424794834,1781170240000,-7238.677,8.755e-05,2]
[424794836,1781170240000,-500.0,8.755e-05,2]
[424794838,1781170240000,-160.0,8.801e-05,2]
[424794880,1781170241000,-2000.0,0.00010274,2]
[424794888,1781170241000,-181.57,0.00010502,2]
[424794885,1781170241000,-250.31279834,0.00010429,2]
[424794884,1781170241000,-500.0,0.00010399,2]
[424794893,1781170241000,-1633.88931941,0.0001064,2]
[424794881,1781170241000,-4000.0,0.00010278,2]
[424794890,1781170241000,-1633.88931941,0.00010536,2]
[424794886,1781170241000,-1633.88931941,0.00010441,2]
[424794887,1781170241000,-1633.88931941,0.00010492,2]
[424794903,1781170241000,-1633.88931941,0.00010724,2]
[424794889,1781170241000,-4000.0,0.00010529,2]
[424794892,1781170241000,-1633.88931941,0.00010608,2]
[424794901,1781170241000,-1633.88931941,0.00010698,2]
[424794899,1781170241000,-239.417256,0.00010682,2]
[424794894,1781170241000,-1633.88931941,0.0001067,2]
[424794896,1781170241000,-278.845882,0.00010682,2]
[424794898,1781170241000,-216.316805,0.00010682,2]
[424794895,1781170241000,-500.0,0.00010673,2]
[424794883,1781170241000,-1633.88931941,0.00010374,2]
[424794891,1781170241000,-1633.88931941,0.00010574,2]
[424794878,1781170241000,-1633.88931941,0.00010211,2]
[424794864,1781170241000,-2252.0,9.973e-05,2]
[424794877,1781170241000,-500.0,0.00010125,2]
[424794857,1781170241000,-512.0,9.732e-05,2]
[424794859,1781170241000,-10000.0,9.899e-05,2]
[424794863,1781170241000,-62545.47846796,9.97e-05,2]
[424794858,1781170241000,-500.0,9.851e-05,2]
[424794860,1781170241000,-500.0,9.9e-05,2]
[424794862,1781170241000,-170.74865145,9.949e-05,2]
[424794861,1781170241000,-180.46972025,9.949e-05,2]
[424794904,1781170241000,-1633.88931941,0.00010749,2]
[424794867,1781170241000,-2000.0,0.0001,2]
[424794882,1781170241000,-433.0,0.00010344,2]
[424794865,1781170241000,-33277.9515,0.0001,2]
[424794868,1781170241000,-200.24517935,0.0001,2]
[424794876,1781170241000,-181.57,0.00010046,2]
[424794872,1781170241000,-32900.0,0.0001,3]
[424794875,1781170241000,-4000.0,0.00010027,2]
[424794870,1781170241000,-200.24517935,0.0001,2]
[424794871,1781170241000,-200.24517935,0.0001,2]
[424794874,1781170241000,-2968.95470527,0.0001,2]
[424794873,1781170241000,-430.09823189,0.0001,2]
[424794879,1781170241000,-306.35424739,0.00010213,2]
[424794869,1781170241000,-200.24517935,0.0001,2]
[424794902,1781170241000,-512.0,0.00010705,2]
[424794866,1781170241000,-8579.2581,0.0001,2]
[424794900,1781170241000,-228.894412,0.00010682,2]
[424794928,1781170241000,-500.0,0.00010958,2]
[424794936,1781170241000,-150.0,0.00010959,2]
[424794930,1781170241000,-500.0,0.00010958,2]
[424794935,1781170241000,-186.7,0.00010959,2]
[424794932,1781170241000,-500.0,0.00010958,2]
[424794931,1781170241000,-500.0,0.00010958,2]
[424794933,1781170241000,-500.0,0.00010958,2]
[424794934,1781170241000,-500.0,0.00010958,2]
[424794938,1781170241000,-2123.92,0.00010959,2]
[424794929,1781170241000,-500.0,0.00010958,2]
[424794937,1781170241000,-150.0,0.00010959,2]
[424794939,1781170241000,-166.66,0.00010959,2]
[424794941,1781170241000,-1633.88931941,0.00010972,2]
[424794942,1781170241000,-306.35424739,0.00010973,2]
[424794947,1781170241000,-1633.88931941,0.00011038,2]
[424794943,1781170241000,-1633.88931941,0.00010989,2]
[424794944,1781170241000,-1633.88931941,0.00011005,2]
[424794948,1781170241000,-1633.88931941,0.00011053,2]
[424794945,1781170241000,-1633.88931941,0.00011022,2]
[424794897,1781170241000,-308.623807,0.00010682,2]
[424794946,1781170241000,-4000.0,0.0001103,2]
[424794923,1781170241000,-500.0,0.00010958,2]
[424794940,1781170241000,-181.57,0.00010959,2]
[424794921,1781170241000,-1633.88931941,0.00010954,2]
[424794920,1781170241000,-500.0,0.00010947,2]
[424794905,1781170241000,-306.35424739,0.0001075,2]
[424794906,1781170241000,-1633.88931941,0.00010773,2]
[424794907,1781170241000,-4000.0,0.00010779,2]
[424794910,1781170241000,-164.35,0.00010836,2]
[424794912,1781170241000,-1633.88931941,0.0001086,2]
[424794913,1781170241000,-1421.21,0.00010877,2]
[424794908,1781170241000,-1633.88931941,0.00010796,2]
[424794915,1781170241000,-1633.88931941,0.00010899,2]
[424794911,1781170241000,-1633.88931941,0.00010839,2]
[424794909,1781170241000,-1633.88931941,0.00010818,2]
[424794914,1781170241000,-1633.88931941,0.0001088,2]
[424794917,1781170241000,-2083.20542946,0.000109,2]
[424794927,1781170241000,-500.0,0.00010958,2]
[424794916,1781170241000,-41200.0,0.000109,3]
[424794926,1781170241000,-500.0,0.00010958,2]
[424794922,1781170241000,-500.0,0.00010958,2]
[424794924,1781170241000,-500.0,0.00010958,2]
[424794919,1781170241000,-1633.88931941,0.00010936,2]
[424794918,1781170241000,-1633.88931941,0.00010918,2]
[424794925,1781170241000,-500.0,0.00010958,2]
[424794990,1781170242000,-181.57,0.00011872,2]
[424794983,1781170242000,-166.66,0.00011507,2]
[424794984,1781170242000,-500.0,0.00011525,2]
[424794981,1781170242000,-500.0,0.00011495,2]
[424794975,1781170242000,-306.35424739,0.00011288,2]
[424794978,1781170242000,-736.0,0.00011379,2]
[424794977,1781170242000,-2000.0,0.00011301,2]
[424794976,1781170242000,-166.66,0.00011288,2]
[424794985,1781170242000,-164.35,0.00011551,2]
[424794979,1781170242000,-166.66,0.00011397,2]
[424794982,1781170242000,-3865.97,0.00011507,2]
[424794996,1781170242000,-500.0,0.00012196,2]
[424794988,1781170242000,-500.0,0.00011769,2]
[424794989,1781170242000,-175.0,0.00011872,2]
[424794986,1781170242000,-512.0,0.00011678,2]
[424794991,1781170242000,-164.35,0.00011909,2]
[424794994,1781170242000,-48317.9,0.00012055,2]
[424794995,1781170242000,-1421.21,0.00012086,2]
[424795000,1781170242000,-181.57,0.00012329,2]
[424794993,1781170242000,-503.27053058,0.00012043,2]
[424794999,1781170242000,-2000.0,0.00012329,2]
[424794992,1781170242000,-19479.77009048,0.00012029,2]
[424794974,1781170242000,-1633.88931941,0.00011286,2]
[424794987,1781170242000,-1944.04834333,0.00011695,2]
[424794972,1781170242000,-1633.88931941,0.00011262,2]
[424794953,1781170242000,-500.0,0.00011098,2]
[424794973,1781170242000,-1633.88931941,0.00011274,2]
[424794949,1781170242000,-166.66,0.00011068,2]
[424794951,1781170242000,-1633.88931941,0.00011084,2]
[424794997,1781170242000,-164.35,0.00012267,2]
[424794952,1781170242000,-500.0,0.00011098,2]
[424794954,1781170242000,-250.0,0.00011099,2]
[424794956,1781170242000,-1633.88931941,0.00011114,2]
[424794958,1781170242000,-1633.88931941,0.00011142,2]
[424794950,1781170242000,-1633.88931941,0.00011069,2]
[424794955,1781170242000,-1633.88931941,0.00011099,2]
[424794957,1781170242000,-1633.88931941,0.00011128,2]
[424794959,1781170242000,-306.35424739,0.00011143,2]
[424794961,1781170242000,-1633.88931941,0.0001117,2]
[424794960,1781170242000,-1633.88931941,0.00011156,2]
[424794969,1781170242000,-155.04,0.00011233,2]
[424794962,1781170242000,-166.66,0.00011178,2]
[424794970,1781170242000,-1633.88931941,0.00011236,2]